[Event "3rd President Cup-A 2024"]
[Site "Tashkent"]
[Date "2024.11.26"]
[Round "6.18"]
[White "Khubukshanov, Erdem"]
[Black "Poormosavi, Seyed Kian"]
[Result "1-0"]
[ECO "E48"]
[WhiteElo "2443"]
[BlackElo "2381"]
[Annotator "RC"]
[PlyCount "125"]
[EventDate "2024.11.22"]
[EventType "swiss"]
[EventCountry "UZB"]
[SourceTitle "playchess.com"]
[Source "ChessBase"]
[SourceQuality "1"]
[TimeControl "5400+30"]

1. d4 {[%emt 0:00:04]} Nf6 {[%emt 0:02:52]} 2. c4 {[%emt 0:00:13]} e6 {[%emt 0:00:20]} 3. Nc3 {[%emt 0:00:21]} Bb4 {[%emt 0:00:18]} 4. e3 {[%emt 0:00:23]} O-O {[%emt 0:00:59]} 5. Bd3 {[%emt 0:00:25]} d5 {[%emt 0:00:52]} 6. cxd5 {[%emt 0:00:25]} exd5 {[%emt 0:02:46]} 7. a3 {[%emt 0:00:17]} Bd6 {[%emt 0:01:42]} 8. Qc2 {[%emt 0:00:16]} b6 {[%emt 0:05:25]} 9. Nb5 {[%emt 0:00:24]} Ba6 {[%emt 0:02:18]} 10. Ne2 {[%emt 0:08:06]} c5 {[%emt 0:07:19]} 11. b3 {[%emt 0:06:23]} Nc6 {[%emt 0:04:43]} 12. Bb2 {[%emt 0:13:37]} Rc8 {[%emt 0:08:10]} 13. Nxd6 {[%emt 0:02:38]} Bxd3 {[%emt 0:00:21]} 14. Qxd3 {[%emt 0:00:19]} Qxd6 {[%emt 0:00:19]} 15. O-O {[%emt 0:02:10]} cxd4 {[%emt 0:09:50]} 16. Bxd4 {[%emt 0:05:30]} Rfd8 {[%emt 0:03:19]} 17. Rfd1 {[%emt 0:04:57]} h6 {[%emt 0:02:27]} 18. Bb2 {[%emt 0:04:04]} Ne5 {[%emt 0:15:28]} 19. Qf5 {[%emt 0:07:16]} Neg4 {[%emt 0:10:33]} 20. Ng3 {[%emt 0:01:22]} Qe6 {[%emt 0:12:08]} 21. h3 {[%emt 0:26:00]} Qxf5 {[%emt 0:00:23]} 22. Nxf5 {[%emt 0:00:08]} Rc2 {[%emt 0:00:09]} 23. Bxf6 {[%emt 0:02:32]} Nxf6 {[%emt 0:00:06]} 24. Rac1 {[%emt 0:00:40]} Ra2 {[%emt 0:01:31]} 25. Ra1 {[%emt 0:00:58]} Rc2 {[%emt 0:01:27]} 26. Rdc1 {[%emt 0:00:31]} Rb2 {[%emt 0:00:31]} 27. b4 {[%emt 0:01:49]} Rd7 {[%emt 0:00:38]} 28. Rc6 {[%emt 0:01:42]} Ne4 {[%emt 0:01:05]} 29. f3 {[%emt 0:00:50]} Nd2 {[%emt 0:00:01]} 30. Rd1 {[%emt 0:05:04]} Kh7 {[%emt 0:01:06]} 31. Rc3 {[%emt 0:03:53]} g6 {[%emt 0:02:44]} 32. Nd4 {[%emt 0:00:01]} Nc4 {[%emt 0:02:34]} 33. e4 {[%emt 0:02:25]} Ra2 {[%emt 0:01:57]} 34. Nc6 {[%emt 0:00:51]} Rd2 {[%emt 0:00:29]} 35. Rxd2 {[%emt 0:00:33]} Nxd2 {[%emt 0:00:01]} 36. exd5 {[%emt 0:00:40]} b5 {[%emt 0:01:03]} 37. Rc5 {[%emt 0:00:34]} Nc4 {[%emt 0:00:14]} 38. a4 {[%emt 0:00:37]} Nb6 {[%emt 0:00:42]} 39. a5 {[%emt 0:00:22]} Nxd5 {[%emt 0:00:28]} 40. Ne5 {[%emt 0:00:05]} Rd6 {[%emt 0:00:36]} 41. Nxf7 {[%emt 0:00:02]} Rd7 {[%emt 0:00:14]} 42. Ne5 {[%emt 0:00:04]} Rd6 {[%emt 0:00:29]} 43. Rxb5 {[%emt 0:00:05]} a6 {[%emt 0:00:23]} 44. Rb7+ {[%emt 0:00:59]} Kg8 {[%emt 0:00:01]} 45. Kf2 {[%emt 0:00:27]} g5 {[%emt 0:00:42]} 46. g3 {[%emt 0:00:32]} Re6 {[%emt 0:00:11]} 47. Nd3 {[%emt 0:00:54]} Rc6 {[%emt 0:00:03]} 48. f4 {[%emt 0:00:26]} Rc3 {[%emt 0:01:49]} 49. Ke2 {[%emt 0:00:14]} Rb3 {[%emt 0:00:42]} 50. f5 {[%emt 0:00:31]} h5 {[%emt 0:00:10]} 51. Kd2 {[%emt 0:01:02]} Ra3 {[%emt 0:00:19]} 52. Ra7 {[%emt 0:01:04]} Ra2+ {[%emt 0:00:22]} 53. Kc1 {[%emt 0:00:14]} Rg2 {[%emt 0:00:52]} 54. Rd7 {[%emt 0:00:17]} Nf6 {[%emt 0:00:18]} 55. Rd6 {[%emt 0:00:07]} Ne4 {[%emt 0:00:21]} 56. Rg6+ {[%emt 0:00:39]} Kf8 {[%emt 0:00:15]} 57. g4 {[%emt 0:00:13]} Rg3 {[%emt 0:00:52]} 58. Kc2 {[%emt 0:00:25]} h4 {[%emt 0:00:09]} 59. Re6 {[%emt 0:00:19]} Rg2+ {[%emt 0:01:03]} 60. Kb3 {[%emt 0:00:01]} Nd2+ {[%emt 0:00:15]} 61. Kc3 {[%emt 0:00:20]} Nf3 {[%emt 0:00:03]} 62. Rxa6 {[%emt 0:00:51]} Rg3 {[%emt 0:00:03]} 63. Rd6 {[%emt 0:00:36]} 1-0

[Event "3rd President Cup-A 2024"]
[Site "Tashkent"]
[Date "2024.11.26"]
[Round "6.19"]
[White "Nitish Belurkar"]
[Black "Omonov, Asrorjon"]
[Result "1/2-1/2"]
[ECO "B12"]
[WhiteElo "2434"]
[BlackElo "2360"]
[Annotator "RC"]
[PlyCount "45"]
[EventDate "2024.11.22"]
[EventType "swiss"]
[EventCountry "UZB"]
[SourceTitle "playchess.com"]
[Source "ChessBase"]
[SourceQuality "1"]
[TimeControl "5400+30"]

1. e4 {[%emt 1:31:00]} c6 {[%emt 1:31:00]} 2. d4 {[%emt 0:00:30]} d5 {[%emt 0:00:30]} 3. e5 {[%emt 0:00:30]} Bf5 {[%emt 0:00:30]} 4. Nf3 {[%emt 0:00:30]} e6 {[%emt 0:00:30]} 5. Be2 {[%emt 0:00:30]} Nd7 {[%emt 0:00:30]} 6. O-O {[%emt 0:00:30]} a5 {[%emt 0:00:30]} 7. a4 {[%emt 0:00:30]} f6 {[%emt 0:00:30]} 8. b3 {[%emt 0:00:30]} fxe5 {[%emt 0:00:30]} 9. dxe5 {[%emt 0:00:30]} Bc5 {[%emt 0:00:30]} 10. Bf4 {[%emt 0:00:30]} Ne7 {[%emt 0:00:30]} 11. Nbd2 {[%emt 0:00:30]} O-O {[%emt 0:00:30]} 12. Bg3 {[%emt 0:00:30]} h6 {[%emt 0:00:30]} 13. h3 {[%emt 0:00:30]} Bh7 {[%emt 0:00:30]} 14. Bh2 {[%emt 0:00:30]} Nf5 {[%emt 0:00:30]} 15. Bd3 {[%emt 0:00:30]} Qb6 {[%emt 0:00:30]} 16. c3 {[%emt 0:00:30]} Kh8 {[%emt 0:00:30]} 17. Qc2 {[%emt 0:00:30]} Be7 {[%emt 0:00:30]} 18. Qb1 {[%emt 0:00:30]} Rf7 {[%emt 0:00:30]} 19. Ra2 {[%emt 0:00:30]} Raf8 {[%emt 0:00:30]} 20. Rb2 {[%emt 0:00:30]} Qa7 {[%emt 0:00:30]} 21. Kh1 {[%emt 0:00:30]} Nc5 {[%emt 0:00:30]} 22. Bc2 {[%emt 0:00:30]} Bg8 {[%emt 0:00:30]} 23. Qd1 {[%emt 0:00:30]} 1/2-1/2

[Event "3rd President Cup-A 2024"]
[Site "Tashkent"]
[Date "2024.11.26"]
[Round "6.22"]
[White "Akhilbay, Imangali"]
[Black "Audi Ameya"]
[Result "1/2-1/2"]
[ECO "B90"]
[WhiteElo "2306"]
[BlackElo "2412"]
[Annotator "TA"]
[PlyCount "69"]
[EventDate "2024.11.22"]
[EventType "swiss"]
[EventCountry "UZB"]
[SourceTitle "playchess.com"]
[Source "ChessBase"]
[SourceQuality "1"]
[TimeControl "5400+30"]

{[%evp 10,69,20,8,25,11,16,24,27,32,20,19,44,16,51,15,28,50,28,0,0,0,0,-5,0,-11,0,-47,159,166,500,502,496,477,770,769,770,770,756,715,573,0,0,-145,-129,-112,-140,-137,0,-31,0,-114,0,-32,0,-172,0,-23,0,-170,0,0]} 1. e4 {[%emt 0:00:59]} c5 {[%emt 0:00:04]} 2. Nf3 {[%emt 0:00:05][%cal Bg1f3,Bf3d4,Bd4b3][%mdl 32]} d6 {[%emt 0:00:04]} 3. d4 {[%emt 0:00:06]} cxd4 {[%emt 0:00:04]} 4. Nxd4 {[%emt 0:00:05]} Nf6 {[%emt 0:00:04]} 5. Nc3 {[%emt 0:00:05]} a6 {[%emt 0:00:02]} 6. Nb3 {[%emt 0:00:18]} e6 {[%emt 0:00:22]} 7. g4 {[%emt 0:00:07]} b5 {[%emt 0:00:25]} 8. a3 {[%emt 0:00:06]} Nfd7 {[%emt 0:02:24]} 9. g5 {[%emt 0:04:57]} Nc6 {[%emt 0:00:44]} 10. Be3 {[%emt 0:01:12][%cal Bc1e3,Be3d4,Bd4c3][%mdl 32]} Qc7 {[%emt 0:08:00]} 11. Qe2 {[%emt 0:06:20]} Nce5 {[%emt 0:07:40]} 12. O-O-O {[%emt 0:10:56]} Nc4 {[%emt 0:01:48]} 13. Bd4 {[%emt 0:03:43]} Bb7 {[%emt 0:05:34]} 14. Rg1 {[%emt 0:13:05]} e5 {[%emt 0:03:34]} 15. Nd5 {[%emt 0:00:21]} Bxd5 {[%emt 0:00:13]} 16. exd5 {[%emt 0:00:05]} Be7 {[%emt 0:00:54] Dodges f4} 17. Bc3 {[%emt 0:00:13]} O-O {[%emt 0:11:30]} 18. Qg4 {[%emt 0:07:20] [#]} (18. Qf3 $11 {is more appropriate.}) 18... Nxa3 $2 {[%emt 0:19:32]} 19. Bd3 $1 $16 {[%emt 0:25:09] and Bxh7+ should not be overlooked White is more active.} Nc4 $2 {[%emt 0:10:19] [#]} (19... b4) 20. Bxh7+ $1 $18 {[%emt 0:03:14][%mdl 512]} Kxh7 {[%emt 0:00:29][%cal Bg8h7,Bh7g7,Bg7f8,Bf8e8][%mdl 32]} 21. Rd3 {[%emt 0:01:30]} f5 {[%emt 0:07:40]} (21... Kg8 $142 22. Rh3 f5) 22. gxf6 {[%emt 0:15:34]} Bxf6 {[%emt 0:00:05]} 23. Qe6 $1 {[%emt 0:00:06]} g5 {[%emt 0:00:30]} 24. Rh3+ {[%emt 0:00:50]} Kg7 {[%emt 0:00:04]} 25. Qf5 $2 {[%emt 0:00:51]} (25. f4 $18 {[%cal Oh3h6] Threatening mate with Rh6!.} Rae8 (25... exf4 26. Rxg5#) 26. Qf5) 25... Rf7 $1 $11 {[%emt 0:04:02]} (25... Rh8 $2 26. Rxg5+ Bxg5+ 27. Qxg5+ Kf7 28. Qf5+ Nf6 29. Qe6+ Kg7 30. Rg3+ $18) 26. Rxg5+ {[%emt 0:02:10]} (26. Nd2 $11 Nxd2 27. Rh7+ Kg8 28. Rxg5+ Rg7 (28... Bg7 $2 29. Qh3 $18) 29. Rgh5) 26... Kf8 $1 $17 {[%emt 0:00:11]} (26... Bxg5+ 27. Qxg5+ Kf8 28. Rh8#) 27. Rgh5 {[%emt 0:01:11][%cal Oh5h8]} Ke8 $1 {[%emt 0:01:07]} 28. Qe6+ {[%emt 0:01:27]} Re7 {[%emt 0:03:00]} (28... Be7 $1 $17 {[%cal Od7f8]} 29. Rh7 Rxh7 30. Rxh7 Nf8 31. Qf7+ Kd8) 29. Qf5 {[%emt 0:00:04][%cal Oh5h8]} (29. Rh8+ $5 Bxh8 30. Qg6+ Rf7 31. Qe6+ Re7 $11) 29... Rf7 {[%emt 0:02:11]} (29... Bg7 $15 30. Rh8+ Nf8) 30. Qe6+ {[%emt 0:00:04]} Re7 {[%emt 0:00:46]} ({Better is} 30... Be7 $1 $17 {[%cal Od7f8]} 31. Rh7 Rxh7 32. Rxh7 Nf8 33. Qf7+ Kd8) 31. Qf5 {[%emt 0:00:02][%cal Oh5h8]} Rf7 {[%emt 0:12:38]} (31... Bg7 $15) 32. Qe6+ $19 {[%emt 0:04:15] [#]} Re7 $2 (32... Be7 $1 $19 {[%cal Od7f8]} 33. Rh7 Rxh7 34. Rxh7 Nf8 35. Qf7+ Kd8) 33. Qf5 {[%cal Oh5h8]} Rf7 {[%emt 0:01:00]} (33... Bg7 $11) 34. Qe6+ {[#]} Re7 $2 (34... Be7 $1 $19 {[%cal Od7f8] White must now prevent ...Nf8!.} 35. Rf5 (35. Rh7 Rxh7 36. Rxh7 Nf8 $15) 35... Rxf5 36. Qxf5 Qb7 37. Rh8+ Nf8) 35. Rh8+ {[%emt 0:01:30]} 1/2-1/2

[Event "3rd President Cup-A 2024"]
[Site "Tashkent"]
[Date "2024.11.26"]
[Round "6.23"]
[White "Rakhmatullaev, Almas"]
[Black "Usov, Aleksandr E."]
[Result "1/2-1/2"]
[ECO "C42"]
[WhiteElo "2410"]
[BlackElo "2314"]
[Annotator "TA"]
[PlyCount "108"]
[EventDate "2024.11.22"]
[EventType "swiss"]
[EventCountry "UZB"]
[SourceTitle "playchess.com"]
[Source "ChessBase"]
[SourceQuality "1"]
[TimeControl "5400+30"]

{[%evp 23,108,-19,0,-18,-25,-22,-35,-24,-29,-24,-24,-36,-31,-38,-34,-38,-33,-45,-3,0,44,37,84,70,91,29,524,522,526,524,525,82,72,-95,-96,-93,-94,-95,-95,-100,-96,-163,-161,-162,-155,-146,-62,-50,0,0,0,0,0,0,0,0,0,0,0,0,0,0,0,0,0,0,0,0,9,0,0,0,0,0,0,0,0,0,0,0,0,0,8,0,0,0,0]} 1. e4 {[%emt 0:04:52]} e5 {[%emt 0:00:05]} 2. Nf3 {[%emt 0:01:20]} Nf6 {[%emt 0:00:10]} 3. Nxe5 {[%emt 0:05:07]} d6 {[%emt 0:00:03]} 4. Nf3 {[%emt 0:00:12]} Nxe4 {[%emt 0:00:03]} 5. c4 {[%emt 0:00:08]} Nc6 {[%emt 0:01:40]} 6. Nc3 {[%emt 0:00:26]} Nxc3 {[%emt 0:01:30]} 7. dxc3 {[%emt 0:00:07]} g6 $1 {[%emt 0:01:16][%mdl 4] is currently scoring better than 7...Be7. C42: Petroff Defence: 3 Nxe5 and unusual White 3rd moves.} 8. Bg5 {[%emt 0:05:50]} Be7 {[%emt 0:00:23]} 9. Bh6 {[%emt 0:00:10]} Bf8 {[%emt 0:00:57]} 10. Be3 {[%emt 0:13:15]} Bg7 {[%emt 0:00:08]} 11. h4 $146 {[%emt 0:00:15]} ({Predecessor:} 11. c5 dxc5 12. Qxd8+ Nxd8 13. Bxc5 Ne6 14. Be3 Bd7 15. O-O-O a6 16. Bc4 O-O-O 17. Bd5 Rhe8 18. Rd2 Bc6 19. Bxc6 bxc6 {½-½ Kollars,D (2588)-Papp,G (2602) Bremen CD Meyer Memorial 2020 (8)}) 11... Bg4 {[%emt 0:01:53]} 12. Be2 {[%emt 0:00:02]} Qd7 {[%emt 0:27:32]} 13. Qd2 {[%emt 0:09:55]} O-O-O {[%emt 0:00:49]} 14. O-O-O {[%emt 0:00:10]} Rhe8 {[%emt 0:07:58]} 15. Rhe1 {[%emt 0:01:52]} Qf5 {[%emt 0:13:56]} 16. Bg5 $1 {[%emt 0:02:40]} f6 {[%emt 0:01:36]} 17. Be3 {[%emt 0:00:52]} Qh5 {[%emt 0:07:27]} 18. b3 {[%emt 0:26:50]} Ne5 {[%emt 0:12:01]} 19. Nd4 {[%emt 0:08:31]} Bxe2 $1 {[%emt 0:02:39]} (19... Qxh4 $2 20. Rh1 $18) 20. Nxe2 {[%emt 0:00:10]} Qxh4 {[%emt 0:05:20]} 21. f3 {[%emt 0:06:36]} f5 {[%emt 0:12:20]} 22. Bg5 $1 {[%emt 0:03:44]} Qf2 {[%emt 0:00:05]} (22... Nd3+ $1 $14 23. Kb1 Bh6 (23... Qh5 24. Rh1 $16) 24. Bxh4 (24. Qxd3 $2 {is the wrong capture.} Qxg5 25. Rh1 Qxg2 $19) (24. Bxh6 Nxe1 25. g3 Rxe2 $16) 24... Bxd2 25. Rxd2 Nxe1 26. Bxe1 g5) 23. Bxd8 {[%emt 0:01:49]} Kxd8 {[%emt 0:00:03] [#]} 24. c5 {[%emt 0:01:06]} ({White should try} 24. f4 $1 $16 {[%cal Rf4e5]} Bh6 (24... Nd7 25. Nd4) 25. c5) 24... Qxg2 $2 {[%emt 0:02:04][%mdl 8192]} (24... Qxc5 $11 {and Black is okay.} 25. Nd4 Kd7) 25. cxd6 $18 {[%emt 0:00:21]} Qxf3 {[%emt 0:00:31]} 26. Nd4 {[%emt 0:02:52]} Qd5 {[%emt 0:00:29]} 27. c4 $2 {[%emt 0:04:48]} (27. Qg5+ $18 {and White stays clearly on top.} Kd7 28. Nxf5) 27... Qxd6 $16 {[%emt 0:00:24] [#]} 28. Nxf5 $2 {[%emt 0:00:00] [#]} (28. Qa5 $1 $16 Kc8 29. Nxf5) 28... Qxd2+ $1 $17 {[%emt 0:00:36]} 29. Rxd2+ {[%emt 0:00:00]} Kc8 {[%emt 0:00:09]} 30. Nxg7 {[%emt 0:00:00]} Nd3+ $1 {[%emt 0:00:03]} 31. Rxd3 {[%emt 0:00:00]} Rxe1+ {[%emt 0:00:03]} 32. Kc2 {[%emt 0:00:00]} (32. Kd2 $17 {was worth a try.} Re7 33. Nh5 gxh5 34. Rf3) 32... Re7 $19 {[%emt 0:00:04]} 33. Nh5 {[%emt 0:00:00]} gxh5 {[%emt 0:00:09]} 34. Rd5 {[%emt 0:00:00]} b6 {[%emt 0:02:32]} (34... Re2+ $17 35. Kb1 h4) 35. Rxh5 $15 {[%emt 0:00:00]} c5 {[%emt 0:00:28]} (35... Kd7 $15) 36. a3 $11 {[%emt 0:00:00]} Kd7 {[%emt 0:00:33]} 37. Rh6 {[%emt 0:00:00]} Ke8 {[%emt 0:00:30]} 38. b4 {[%emt 0:00:00]} Rc7 {[%emt 0:00:29]} 39. bxc5 {[%emt 0:00:00]} bxc5 {[%emt 0:00:04]} 40. Kd3 {[%emt 0:00:01]} Kf8 {[%emt 0:00:55]} 41. Ke4 {[%emt 0:00:01]} Kg7 {[%emt 0:00:30]} 42. Ra6 {[%emt 0:00:24]} Rd7 {[%emt 0:00:31]} 43. Kf5 {[%emt 0:00:21]} Rc7 {[%emt 0:00:31]} 44. Ke5 {[%emt 0:00:19]} Rf7 {[%emt 0:00:30]} 45. Rc6 {[%emt 0:00:38]} Rf3 {[%emt 0:00:30]} 46. a4 {[%emt 0:02:00]} h5 {[%emt 0:00:30]} 47. Rxc5 {[%emt 0:00:11]} h4 {[%emt 0:00:17]} 48. Ke4 {[%emt 0:00:07]} Rc3 {[%emt 0:00:43]} 49. Kd4 {[%emt 0:00:11]} Rf3 {[%emt 0:00:29]} 50. Rh5 {[%emt 0:00:27]} h3 {[%emt 0:00:22]} 51. c5 {[%emt 0:00:08]} Kg6 {[%emt 0:00:38]} 52. Rh8 {[%emt 0:00:07]} Rf4+ {[%emt 0:00:30]} 53. Kd5 {[%emt 0:01:01]} Rf5+ {[%emt 0:00:07]} 54. Ke4 {[%emt 0:03:40]} Rxc5 {[%emt 0:00:34]} 1/2-1/2